Workbook

Sheet 1
A1: Школа | B1: МБОУ "Мысовская СОШ" | E1: Отд./корп | I1: День | J1: 2024-01-18
A3: Прием пищи | B3: Раздел | C3: № рец. | D3: Блюдо | E3: Выход, г | F3: Цена | G3: Калорийность | H3: Белки | I3: Жиры | J3: Углеводы
A4: Завтрак | B4: гор. Блюдо | C4: №284/2018 | D4: Пудинг из творога с рисом | E4: 160 | G4: 280.10 | H4: 27.92 | I4: 6.80 | J4: 26.81
A5: 7-11 лет | B5: сладкое | C5: №481/2013 | D5: Молоко сгущенное | E5: 30 | G5: 65.86 | H5: 1.44 | I5: 1.70 | J5: 11.20
B6: гор. Напиток | C6: №457/2018 | D6: Чай с сахаром | E6: 200 | G6: 39.92 | J6: 9.98
B7: мучные изделия | C7: №570/2013 | D7: Сдоба "Обыкновенная" | E7: 70 | G7: 189.04 | H7: 5.15 | I7: 3.02 | J7: 33.29
B8: хлеб черн. | C8: №109/2013 | D8: Хлеб ржаной | E8: 40 | G8: 103.90 | H8: 2.45 | I8: 0.50 | J8: 22.40
E10: =SUM(E4:E9) -> 500 | F10: 96.26 | G10: =SUM(G4:G9) -> 678.82 | H10: =SUM(H4:H9) -> 36.96 | I10: 12.02 | J10: 103.68
A11: Завтрак 2 | B11: мучные изделия | C11: №564/2013 | D11: Булочка "Домашняя" | E11: 60 | G11: 255.00 | H11: 4.00 | I11: 10.00 | J11: 37.00
A12: ОВЗ | B12: гор. Напиток | C12: №495/2013 | D12: Чай с молоком | E12: 200 | G12: 81.00 | H12: 2.00 | I12: 1.00 | J12: 16.00
E13: 260 | F13: 31.60 | G13: =SUM(G11:G12) -> 336 | H13: =SUM(H11:H12) -> 6 | I13: 11 | J13: 53
A14: Обед | B14: закуска | C14: №4/2013 | D14: Салат из белокочанной капусты с морковью | E14: 60 | G14: 57.20 | H14: 0.92 | I14: 3.65 | J14: 5.12
A15: 7-11 лет | B15: 1 блюдо | C15: №100/2021 | D15: Рассольник Ленинградский со сметаной | E15: 200 | G15: 54.37 | H15: 1.43 | I15: 0.67 | J15: 10.65
B16: 2 блюдо | C16: №372/2018 | D16: котлета из филе куры | E16: 90 | G16: 154 | H16: 20 | I16: 5 | J16: 8
B17: гарнир | C17: №202/2018 | D17: Каша гречневая | E17: 150 | G17: 345.94 | H17: 12.48 | I17: 8.05 | J17: 55.89
B18: напиток | C18: №496/2018 | D18: Напиток из шиповника | E18: 200 | G18: 72.76 | H18: 0.68 | I18: 0.28 | J18: 16.88
B19: хлеб бел. | C19: №108/2013 | D19: Хлеб пшеничный | E19: 30 | G19: 62.38 | H19: 2.28 | I19: 0.24 | J19: 10.35
B20: хлеб черн. | C20: №109/2013 | D20: Хлеб ржаной | E20: 30 | G20: 62.34 | H20: 1.47 | I20: 0.30 | J20: 13.44
E21: =SUM(E14:E20) -> 760 | F21: 96.26 | G21: =SUM(G14:G20) -> 809 | H21: =SUM(H14:H20) -> 39 | I21: 18 | J21: 120

Sheet 2
A1: Школа | B1: МБОУ "Мысовская СОШ" | E1: Отд./корп | I1: День | J1: 2024-01-18
A3: Прием пищи | B3: Раздел | C3: № рец. | D3: Блюдо | E3: Выход, г | F3: Цена | G3: Калорийность | H3: Белки | I3: Жиры | J3: Углеводы
A4: Завтрак | B4: гор. Блюдо | C4: №284/2018 | D4: Пудинг из творога с рисом | E4: 180 | G4: =280.1/150*170 -> 317.45 | H4: =27.92/150*170 -> 31.64 | I4: =6.8/150*170 -> 7.71 | J4: =26.81/150*170 -> 30.38
A5: 12-18 лет | B5: сладкое | C5: №481/2013 | D5: Молоко сгущенное | E5: 50 | G5: =65.86/30*50 -> 109.77 | H5: =1.44/30*50 -> 2.40 | I5: =1.7/30*50 -> 2.83 | J5: =11.2/30*50 -> 18.67
B6: гор. Напиток | C6: №457/2018 | D6: Чай с сахаром | E6: 200 | G6: 39.92 | J6: 9.98
B7: мучные изделия | C7: №570/2013 | D7: Сдоба "Обыкновенная" | E7: 80 | G7: 189.04 | H7: 5.15 | I7: 3.02 | J7: 33.29
B8: хлеб черн. | C8: №109/2013 | D8: Хлеб ржаной | E8: 40 | G8: 103.90 | H8: 2.45 | I8: 0.50 | J8: 22.40
E10: =SUM(E4:E9) -> 550 | F10: 102.89 | G10: =SUM(G4:G9) -> 760.07 | H10: =SUM(H4:H9) -> 41.64 | I10: 14.06 | J10: 114.72
A11: Обед | B11: закуска | C11: №4/2013 | D11: Салат из белокочанной капусты с морковью | E11: 60 | G11: 57.20 | H11: 0.92 | I11: 3.65 | J11: 5.12
A12: 12-18 лет | B12: 1 блюдо | C12: №100/2021 | D12: Рассольник Ленинградский со сметаной | E12: 250 | G12: =54.37/200*250 -> 67.96 | H12: =1.43/200*250 -> 1.79 | I12: =0.67/200*250 -> 0.84 | J12: =10.65/200*250 -> 13.31
B13: 2 блюдо | C13: №372/2018 | D13: котлета из филе куры | E13: 100 | G13: =153.78/90*100 -> 171 | H13: =19.72/90*100 -> 22 | I13: =4.82/90*100 -> 5 | J13: =7.87/90*100 -> 9
B14: гарнир | C14: №202/2018 | D14: Каша гречневая | E14: 180 | G14: =345.94/150*180 -> 415.13 | H14: =12.48/150*180 -> 14.98 | I14: =8.05/150*180 -> 9.66 | J14: =55.89/150*180 -> 67.07
B15: напиток | C15: №496/2018 | D15: Напиток из шиповника | E15: 200 | G15: 72.76 | H15: 0.68 | I15: 0.28 | J15: 16.88
B16: хлеб бел. | C16: №108/2013 | D16: Хлеб пшеничный | E16: 30 | G16: 62.38 | H16: 2.28 | I16: 0.24 | J16: 10.35
B17: хлеб черн. | C17: №109/2013 | D17: Хлеб ржаной | E17: 30 | G17: 62.34 | H17: 1.47 | I17: 0.30 | J17: 13.44
E18: =SUM(E11:E17) -> 850 | F18: 102.89 | G18: =SUM(G11:G17) -> 909 | H18: =SUM(H11:H17) -> 44 | I18: 20 | J18: 135
A19: Завтрак 2 | B19: мучные изделия | C19: №564/2013 | D19: Булочка "Домашняя" | E19: 60 | G19: 255.00 | H19: 4.00 | I19: 10.00 | J19: 37.00
A20: ОВЗ | B20: гор. Напиток | C20: №495/2013 | D20: Чай с молоком | E20: 200 | G20: 81.00 | H20: 2.00 | I20: 1.00 | J20: 16.00
E21: 260 | F21: 31.60 | G21: =SUM(G19:G20) -> 336 | H21: =SUM(H19:H20) -> 6 | I21: 11 | J21: 53
